bitfinex/quotes_ETHUSD_20220123
["timestamp","ask_amount","ask_price","bid_price","bid_amount"]
[1642919357731,1.10480829,2466.9,2466.6,1.23702602]
[1642919357732,0.08978829,2466.9,2466.6,1.23702602]
[1642919358139,0.08978829,2466.9,2466.7,2.69523872]
[1642919358530,0.08978829,2466.9,2466.7,4.51756834]
[1642919358735,0.08978829,2466.9,2466.8,2.43554471]
[1642919359181,0.08978829,2466.9,2466.8,4.43554471]
[1642919359683,0.08978829,2466.9,2466.8,2.0]
[1642919360283,0.08978829,2466.9,2466.8,4.45711231]
[1642919360585,0.08691267,2467.0,2466.8,6.05458161]
[1642919360785,0.00113684,2467.1,2466.9,3.1808039]
[1642919360983,0.00113684,2467.1,2466.9,4.1808039]
[1642919361281,0.00113684,2467.1,2467.0,4.62970349]
[1642919361580,0.00113684,2467.1,2467.0,6.22970349]
[1642919361783,0.00113684,2467.1,2467.0,4.32970349]
[1642919361982,0.00113684,2467.1,2467.0,6.32970349]
[1642919362829,0.00113684,2467.1,2467.0,6.17854494]
[1642919363434,0.00113684,2467.1,2467.0,6.19075059]
[1642919363831,0.00113684,2467.1,2467.0,5.19075059]
[1642919364030,0.00113684,2467.1,2467.0,3.61220565]
[1642919364432,0.00113684,2467.1,2467.0,2.01220565]
[1642919364631,0.00113684,2467.1,2467.0,2.0]
[1642919365033,0.00113684,2467.1,2466.8,2.04467002]
[1642919366035,0.00113684,2467.1,2467.0,0.03816435]
[1642919367786,2.90113684,2467.1,2467.0,0.03816435]
[1642919368185,3.90113684,2467.1,2467.0,0.03816435]
[1642919368386,1.00113684,2467.1,2467.0,0.03816435]
[1642919368592,0.00113684,2467.1,2467.0,0.03816435]
[1642919369789,0.00113684,2467.1,2467.0,2.48816435]
[1642919370425,0.00113684,2467.1,2467.0,0.03816435]
[1642919370832,2.40113684,2467.1,2467.0,0.03816435]
[1642919371033,2.40113684,2467.1,2466.7,2.0393012]
[1642919371434,3.00113684,2467.1,2466.7,2.0393012]
[1642919371637,1.5316,2466.8,2466.7,2.0393012]
[1642919371934,2.2,2466.7,2466.4,1.5]
[1642919372136,2.2,2466.7,2465.1,2.48681409]
[1642919372137,0.21525774,2466.5,2465.1,2.48681409]
[1642919372334,0.21525774,2466.5,2466.0,0.00397897]
[1642919372533,1.21525774,2466.5,2466.0,0.00397897]
[1642919372734,1.51525774,2466.5,2464.9,2.91838364]
[1642919372933,1.51525774,2466.5,2465.5,1.31508722]
[1642919373133,1.81525774,2466.5,2465.5,1.31508722]
[1642919373332,1.81525774,2466.5,2465.6,0.00625266]
[1642919375778,0.494,2466.4,2465.6,0.00625266]
[1642919375979,0.494,2466.4,2465.8,0.03563256]
[1642919376381,0.494,2466.4,2465.9,0.00454739]
[1642919378229,0.38600573,2466.4,2465.9,0.00454739]
[1642919378828,0.38600573,2466.4,2465.8,0.03563256]
[1642919378829,3.05,2466.1,2465.8,0.03563256]
[1642919379037,1.01418068,2466.0,2465.8,0.03563256]
[1642919379533,0.01418068,2466.0,2465.8,0.03563256]
[1642919379732,1.094,2466.1,2465.8,0.03563256]
[1642919380131,2.094,2466.1,2465.8,0.03563256]
[1642919380332,1.094,2466.1,2465.8,0.03563256]
[1642919380534,0.20316,2465.9,2464.6,3.6693]
[1642919380933,1.20316,2465.9,2464.7,0.00682108]
[1642919381132,0.01370141,2465.8,2464.7,0.00682108]
[1642919381333,5.18816,2465.9,2464.4,0.00852635]
[1642919381584,5.18816,2465.9,2464.9,1.3797243]
[1642919381783,0.494,2466.1,2465.1,1.50941379]
[1642919381985,0.494,2466.1,2465.7,1.46500327]
[1642919382384,0.494,2466.1,2465.2,2.74167542]
[1642919382584,0.494,2466.1,2465.2,0.00397896]
[1642919382786,0.494,2466.1,2465.3,0.00341054]
[1642919382984,0.494,2466.1,2465.2,0.00397896]
[1642919383689,0.494,2466.1,2465.4,1.20374506]
[1642919384191,0.494,2466.1,2465.5,0.00227369]
[1642919385932,0.00227369,2466.3,2465.5,3.68498415]
[1642919386330,0.00170527,2466.2,2465.6,0.00170527]
[1642919386734,0.00113685,2466.1,2465.6,0.00170527]
[1642919387132,0.00284212,2466.4,2465.6,0.00170527]
[1642919387533,0.00227369,2466.3,2465.6,0.00170527]
[1642919387935,0.00170527,2466.2,2465.6,0.00170527]
[1642919388235,6.56809997,2466.6,2465.5,0.00227369]
[1642919388236,0.00113685,2466.1,2465.5,0.00227369]
[1642919388637,6.56809997,2466.6,2465.5,0.00227369]
[1642919388638,0.00341054,2466.5,2465.5,0.00227369]
[1642919389075,0.00284212,2466.4,2465.6,1.16678234]
[1642919389479,0.00227369,2466.3,2465.7,0.00113685]
[1642919389778,0.00170527,2466.2,2465.7,0.00113685]
[1642919390282,0.00113685,2466.1,2465.5,0.00227369]
[1642919390679,1.00341054,2466.5,2465.5,1.44718999]
[1642919390878,1.30341054,2466.5,2465.7,0.03310358]
[1642919391086,0.00284212,2466.4,2465.7,0.03310358]
[1642919391482,0.00227369,2466.3,2465.7,0.03310358]
[1642919391887,1.3,2466.5,2465.7,0.03310358]
[1642919391888,0.00170527,2466.2,2465.7,0.03310358]
[1642919392283,1.3,2466.5,2465.7,0.03310358]
[1642919392284,0.00113685,2466.1,2465.7,0.03310358]
[1642919392740,0.20316,2466.2,2465.7,0.03310358]
[1642919392927,1.08903619,2466.3,2465.7,0.03310358]
[1642919393126,0.00113685,2466.1,2465.7,0.03310358]
[1642919393428,0.00170527,2466.2,2465.7,0.03310358]
[1642919393830,0.00113685,2466.1,2465.7,0.03310358]
[1642919394231,0.00170527,2466.2,2465.7,0.03310358]
[1642919394733,0.00113685,2466.1,2465.7,0.03310358]
[1642919394932,0.49513685,2466.1,2465.7,0.03310358]
[1642919395133,0.494,2466.1,2465.7,0.03310358]
[1642919395333,0.794,2466.1,2465.7,0.03310358]
[1642919395633,1.094,2466.1,2465.7,0.03310358]
[1642919396032,1.094,2466.1,2465.6,0.00170527]
[1642919396033,1.094,2466.1,2465.6,0.03758958]
[1642919396334,1.094,2466.1,2465.7,0.00113685]
[1642919397003,0.01247336,2465.8,2464.6,2.69335536]
[1642919397195,0.01281603,2465.0,2463.9,2.69335536]
[1642919397392,0.01281603,2465.0,2464.2,1.23594382]
[1642919397393,0.72580596,2464.9,2464.2,1.23594382]
[1642919397592,0.72580596,2464.9,2464.1,0.77351901]
[1642919397593,24.06,2464.8,2464.1,0.77351901]
[1642919397895,0.49741054,2464.7,2464.2,1.53666669]
[1642919398093,0.00341054,2464.7,2464.2,1.53666669]
[1642919398298,0.494,2465.2,2464.2,1.53666669]
[1642919398299,0.00284212,2464.6,2464.2,1.53666669]
[1642919398700,0.00227369,2464.5,2464.2,1.53666669]
[1642919398996,0.00170527,2464.4,2464.2,1.53666669]
[1642919399403,0.00113685,2464.3,2464.2,1.53666669]
[1642919400235,1.14661128,2465.1,2464.3,0.0022737]
[1642919400434,0.494,2465.2,2464.3,0.0022737]
[1642919400838,0.05342541,2464.6,2464.3,0.0022737]
[1642919401037,0.05342541,2464.6,2464.4,0.04976625]
[1642919404091,3.99278246,2465.7,2464.4,0.04976625]
[1642919404288,3.99278246,2465.7,2464.5,0.01217936]
[1642919404289,3.9802,2465.7,2464.5,0.01217936]
[1642919405290,0.494,2466.5,2465.4,2.61986036]
[1642919405490,4.0513,2466.4,2465.4,2.61986036]
[1642919405692,1.0,2466.3,2464.5,10.96587936]
[1642919405893,1.0,2466.3,2464.6,1.0]
[1642919406094,1.01136846,2466.3,2464.6,1.0]
[1642919406889,1.2585173,2466.0,2465.4,1.51890361]
[1642919407091,1.01136846,2466.3,2465.4,2.11890361]
[1642919407092,0.01136846,2466.3,2465.4,2.11890361]
[1642919407292,0.00909477,2465.9,2465.5,0.0173655]
[1642919407494,0.01080004,2466.2,2465.5,0.0173655]
[1642919407739,0.00852635,2465.8,2465.7,0.01257638]
[1642919407942,0.01023162,2466.1,2465.8,2.65152537]
[1642919408145,5.53463519,2467.5,2466.4,1.32974674]
[1642919408343,4.11045204,2467.5,2466.5,2.77475898]
[1642919408548,0.01421058,2466.8,2466.5,2.77475898]
[1642919408943,0.01364216,2466.7,2466.5,2.77475898]
[1642919409143,0.01364216,2466.7,2466.6,1.09995351]
[1642919409346,11.59045204,2467.5,2466.6,1.09995351]
[1642919409347,7.49205204,2467.5,2467.0,1.71371935]
[1642919409549,2.54290829,2467.8,2467.1,2.60832349]
[1642919409745,2.54290829,2467.8,2467.1,2.90832349]
[1642919410345,1.39172454,2467.6,2467.1,2.90832349]
[1642919410643,1.39172454,2467.6,2467.0,1.12395478]
[1642919410845,1.39172454,2467.6,2467.0,0.87735478]
[1642919411513,0.30206849,2467.5,2467.0,0.87735478]
[1642919411683,1.37607292,2467.2,2466.7,0.03485239]
[1642919411887,1.0149,2467.2,2466.7,0.03485239]
[1642919412089,0.01591585,2467.1,2466.7,0.03485239]
[1642919412487,1.27725363,2467.0,2466.7,0.03485239]
[1642919412988,0.01477901,2466.9,2466.7,0.03485239]
[1642919413385,1.2619062,2467.0,2466.7,0.03485239]
[1642919413386,0.01421058,2466.8,2466.7,0.03485239]
[1642919414387,1.91421058,2466.8,2466.7,0.03485239]
[1642919414986,0.01421058,2466.8,2466.7,0.63050717]
[1642919419289,0.01421058,2466.8,2466.7,3.03050717]
[1642919419688,0.01421058,2466.8,2466.7,4.04281935]
[1642919419890,0.01421058,2466.8,2466.7,3.04281935]
[1642919420088,0.01421058,2466.8,2466.7,4.04281935]
[1642919420288,0.01421058,2466.8,2466.7,3.99281935]
[1642919420488,1.058e-05,2466.8,2466.7,4.99281935]
[1642919420688,1.0,2468.0,2466.8,3.05]
[1642919420890,0.17504059,2469.1,2467.1,24.06]
[1642919420891,0.00259329,2468.6,2467.1,24.06]
[1642919421089,0.00625266,2467.9,2467.3,0.0121757]
[1642919421289,0.00625266,2467.9,2467.6,0.59565478]
[1642919421486,0.00568424,2467.8,2467.7,2.8803707]
[1642919421686,0.00568424,2467.8,2467.7,1.47938433]
[1642919421885,0.00568424,2467.8,2467.7,0.6]
[1642919422089,0.00568424,2467.8,2467.6,0.59565478]
[1642919422586,1.11767598,2467.7,2467.6,0.59565478]
[1642919425736,1.11767598,2467.7,2467.2,0.162]
[1642919425737,3.05,2467.6,2467.2,0.162]
[1642919425935,3.35,2467.6,2466.8,0.0008]
[1642919426136,1.38499167,2467.3,2466.8,0.0008]
[1642919426334,1.21279381,2467.2,2466.8,0.0008]
[1642919426595,2.21506751,2467.2,2466.8,0.0008]
[1642919426892,0.00170527,2467.1,2466.8,0.0008]
[1642919427293,0.00113685,2467.0,2466.8,0.0008]
[1642919427694,0.00170527,2467.1,2466.8,0.0008]
[1642919428099,0.00113685,2467.0,2466.8,0.0008]
[1642919428495,0.00170527,2467.1,2466.8,0.0008]
[1642919428893,0.00113685,2467.0,2466.8,0.0008]
[1642919429294,3.25316,2466.9,2466.8,0.0008]
[1642919429496,2.0,2466.8,2465.4,2.85472235]
[1642919429698,3.01236379,2466.8,2465.3,3.8796]
[1642919429896,3.01236379,2466.8,2465.0,2.55072603]
[1642919429897,3.01236379,2466.8,2465.5,0.0073895]
[1642919430337,3.01236379,2466.8,2465.1,0.0096632]
[1642919430538,1.54246269,2466.0,2465.5,1.21359524]
[1642919430738,5.63913022,2466.7,2465.5,3.60642071]
[1642919430739,4.2976,2466.7,2465.5,3.60642071]
[1642919430939,1.0,2466.6,2465.6,0.00682108]
[1642919431140,1.3,2466.6,2465.6,0.00682108]
[1642919431337,1.6,2466.6,2465.6,0.00682108]
[1642919431738,1.6,2466.6,2465.1,0.0096632]
[1642919432541,1.20123005,2466.1,2465.5,1.40250686]
[1642919432739,1.6,2466.6,2465.5,1.40250686]
[1642919432939,1.6,2466.6,2465.6,0.00682108]
[1642919434105,1.38255469,2466.2,2465.6,1.17388245]
[1642919434308,1.38255469,2466.2,2465.6,0.00682108]
[1642919434506,1.38255469,2466.2,2465.7,0.00625266]
[1642919434707,1.38255469,2466.2,2465.6,0.00682108]
[1642919435109,3.9605,2466.1,2465.6,0.00682108]
[1642919435309,3.9605,2466.1,2465.0,3.05547247]
[1642919435310,3.9605,2466.1,2465.5,3.06348076]
[1642919435509,3.9605,2466.1,2465.5,1.5]
[1642919435707,3.9605,2466.1,2465.6,0.00682108]
[1642919436108,3.9605,2466.1,2465.8,0.03948627]
[1642919436509,3.9605,2466.1,2465.9,0.00511581]
[1642919437735,4.43579997,2466.7,2465.9,0.00511581]
[1642919437936,1.27197093,2466.2,2465.9,0.00511581]
[1642919438136,0.59397093,2466.2,2465.9,0.00511581]
[1642919438543,0.59397093,2466.2,2465.8,0.03948627]
[1642919438544,2.75316,2466.0,2465.8,0.03948627]
[1642919438740,2.15,2465.9,2465.8,0.03948627]
[1642919438944,0.494,2465.9,2465.8,0.03948627]
[1642919439944,0.494,2465.9,2465.5,1.5]
[1642919439945,1.85,2465.8,2465.5,1.5]
[1642919440343,1.85,2465.8,2465.6,0.00170527]
[1642919440344,2.15,2465.8,2465.6,0.00170527]
[1642919440542,3.15,2465.8,2465.6,0.00170527]
[1642919440743,1.10554938,2465.7,2465.6,0.00170527]
[1642919440942,2.10554938,2465.7,2465.6,0.00170527]
[1642919441150,1.10554938,2465.7,2465.6,0.00170527]
[1642919441591,0.00113685,2466.1,2465.6,2.63369795]
[1642919441995,0.00113685,2466.1,2465.7,0.00113685]
[1642919443995,1.49256591,2465.9,2465.7,0.00113685]
[1642919444399,2.6,2465.8,2465.7,0.00113685]
[1642919444899,3.6,2465.8,2465.7,0.00113685]
[1642919445098,1.49256591,2465.9,2465.7,0.00113685]
[1642919445334,1.49256591,2465.9,2465.5,1.35113685]
[1642919445535,1.79256591,2465.9,2465.5,1.35113685]
[1642919445734,1.49256591,2465.9,2465.5,1.35113685]
[1642919446345,0.00113685,2466.1,2465.5,1.35113685]
[1642919446735,0.00170527,2466.0,2465.5,1.35113685]
[1642919447135,0.00113685,2465.9,2465.5,1.35113685]
[1642919447535,2.06229137,2466.2,2465.5,1.35113685]
[1642919447735,3.06229137,2466.2,2465.5,1.35113685]
[1642919447934,1.36380076,2466.1,2465.5,1.35113685]
[1642919448135,2.36380076,2466.1,2465.5,1.35113685]
[1642919448339,0.00170527,2466.0,2465.5,1.35113685]
[1642919448536,1.24577632,2465.6,2465.5,1.35113685]
[1642919448738,0.00113685,2465.9,2465.5,3.83687864]
[1642919449010,0.00113685,2465.9,2465.6,2.37908133]
[1642919449200,0.00284212,2466.2,2465.5,1.35227369]
[1642919449600,0.0022737,2466.1,2465.5,1.35227369]
[1642919449801,1.12875828,2465.6,2465.5,1.35227369]
[1642919451002,1.12875828,2465.6,2465.5,1.38691728]
[1642919451405,1.12875828,2465.6,2465.5,1.728e-05]
[1642919451611,5.8672,2465.6,2465.5,1.728e-05]
[1642919451806,3.1,2465.5,2464.3,0.0022737]
[1642919452004,7.1983,2465.5,2464.3,0.0022737]
[1642919452205,1.0,2465.4,2464.4,0.00625266]
[1642919452410,1.494,2465.4,2464.4,0.00625266]
[1642919452837,1.494,2465.4,2464.5,1.28463794]
[1642919453239,1.494,2465.4,2464.6,0.00511581]
[1642919454038,1.48044581,2465.1,2464.6,0.00511581]
[1642919454243,1.494,2465.4,2464.6,0.00511581]
[1642919455041,1.794,2465.4,2464.6,0.00511581]
[1642919455241,1.40002229,2465.1,2464.6,0.00511581]
[1642919455440,1.494,2465.4,2464.6,0.00511581]
[1642919456042,1.53964447,2465.4,2464.8,0.04343681]
[1642919456491,1.53964447,2465.4,2464.9,0.00341054]
[1642919456689,1.17652888,2465.3,2464.9,0.00341054]
[1642919456889,1.04564447,2465.4,2464.9,0.00341054]
[1642919457091,0.04564447,2465.4,2464.9,0.00341054]
[1642919457491,0.04564447,2465.4,2464.9,0.01557649]
[1642919457891,0.04564447,2465.4,2465.0,0.00284212]
[1642919458593,0.04564447,2465.4,2464.9,0.00341054]
[1642919459195,1.37231661,2465.2,2464.9,0.00341054]
[1642919459697,1.37231661,2465.2,2464.3,0.0022737]
[1642919459897,0.01287902,2465.1,2464.3,0.0022737]
[1642919460095,0.70585168,2465.0,2464.4,0.00284212]
[1642919460337,1.25369346,2464.8,2464.4,0.00284212]
[1642919460537,1.25369346,2464.8,2463.1,1.78747336]
[1642919460538,3.544,2464.7,2463.1,1.78747336]
[1642919460737,0.79570527,2464.7,2463.6,1.29405889]
[1642919460938,1.00113685,2464.6,2463.6,1.29405889]
[1642919461140,0.494,2464.5,2463.6,1.29405889]
[1642919461341,0.494,2464.5,2464.0,1.16906508]
[1642919461741,0.494,2464.5,2464.1,0.00170527]
[1642919462144,0.494,2464.5,2464.3,1.41185451]
[1642919462341,0.494,2464.5,2464.1,0.00170527]
[1642919462342,0.00113685,2464.6,2464.1,0.00170527]
[1642919462741,0.00113685,2464.6,2464.0,1.12077035]
[1642919463042,0.00227369,2464.5,2464.0,1.12077035]
[1642919463240,0.00227369,2464.5,2464.0,1.72077035]
[1642919463443,0.00170527,2464.4,2464.1,1.22524859]
[1642919463642,0.00170527,2464.4,2464.1,2.52524859]
[1642919463841,0.00113685,2464.3,2464.1,2.52524859]
[1642919464289,0.00568423,2465.1,2464.1,2.52524859]
[1642919464694,0.00511581,2465.0,2464.2,28.03762989]
[1642919464891,0.00511581,2465.0,2464.3,0.3]
[1642919465091,0.00511581,2465.0,2464.1,2.52524859]
[1642919465092,0.00454739,2464.9,2464.1,1.22524859]
[1642919465491,0.00397896,2464.8,2464.1,1.22524859]
[1642919465888,0.00341054,2464.7,2464.1,1.22524859]
[1642919466090,0.00341054,2464.7,2464.3,0.04688815]
[1642919466289,0.00284212,2464.6,2464.3,0.04688815]
[1642919466490,0.00284212,2464.6,2464.3,2.67923135]
[1642919466690,1.0115,2465.2,2464.4,24.06]
[1642919466691,0.00227369,2464.5,2464.4,24.06]
[1642919466890,1.0115,2465.2,2464.5,3.05]
[1642919467096,5.0794,2466.6,2465.0,0.01228276]
[1642919467296,0.00341054,2465.1,2465.0,0.01228276]
[1642919467489,0.00341054,2465.1,2465.0,1.57327273]
[1642919467733,0.00341054,2465.1,2465.0,4.45753403]
[1642919467932,0.00341054,2465.1,2465.0,4.75753403]
[1642919468138,0.00341054,2465.1,2465.0,5.75753403]
[1642919468335,0.00341054,2465.1,2465.0,7.10336162]
[1642919468536,8.76410269,2466.6,2465.9,1.17506228]
[1642919468737,8.76410269,2466.6,2465.9,3.63658364]
[1642919468738,3.7237,2466.6,2465.9,3.63658364]
[1642919468936,0.00795793,2466.5,2465.9,3.63658364]
[1642919469338,0.00738951,2466.4,2465.8,1.24410167]
[1642919469736,0.00682108,2466.3,2465.8,1.24410167]
[1642919470138,0.00625266,2466.2,2465.8,1.24410167]
[1642919470541,0.00568424,2466.1,2465.8,2.63451951]
[1642919470840,0.00511581,2466.0,2465.8,2.63451951]
[1642919471140,0.00454739,2465.9,2465.8,2.63451951]
[1642919472196,0.00454739,2465.9,2465.8,1.24410167]
[1642919472400,0.00454739,2465.9,2465.1,4.35494568]
[1642919472604,0.00454739,2465.9,2465.1,0.00682108]
[1642919472801,0.01256923,2466.2,2465.1,0.00682108]
[1642919472802,0.00397897,2465.8,2465.1,0.00682108]
[1642919473201,0.00341054,2465.7,2465.1,0.00682108]
[1642919473500,0.00284212,2465.6,2465.5,2.85058227]
[1642919473700,1.17913764,2466.1,2465.5,2.85058227]
[1642919473901,2.31519,2466.5,2465.5,2.85058227]
[1642919474099,0.00227369,2466.0,2465.5,2.85058227]
[1642919474301,0.00227369,2466.0,2465.5,3.15058227]
[1642919474499,4.2177,2466.6,2465.5,3.15058227]
[1642919474500,0.00170527,2465.9,2465.5,1.44697708]
[1642919474702,0.00170527,2465.9,2465.1,0.30682108]
[1642919474902,0.00113685,2465.8,2465.1,0.00682108]
[1642919475109,0.00113685,2465.8,2465.2,0.00227369]
[1642919475344,0.494,2466.0,2465.2,0.00227369]
[1642919475550,0.99716,2466.0,2465.2,0.00227369]
[1642919475749,1.33118592,2465.3,2465.2,0.00227369]
[1642919476751,3.53676171,2465.2,2465.1,0.00682108]
[1642919476950,2.694,2465.2,2465.1,0.00682108]
[1642919477149,1.6,2465.1,2465.0,1.5]
[1642919477353,2.094,2465.1,2465.0,1.5]
[1642919477552,3.394,2465.1,2465.0,1.50113685]
[1642919477754,0.794,2465.1,2465.0,1.50113685]
[1642919477951,1.494,2465.1,2465.0,1.50113685]
[1642919478152,2.19586,2465.6,2465.0,1.50113685]
[1642919478351,1.1803,2465.6,2465.0,1.50113685]
[1642919478554,0.00170527,2465.5,2465.0,1.50113685]
[1642919478990,0.00113684,2465.4,2465.0,1.50113685]
[1642919479186,0.00113684,2465.4,2465.1,1.12554696]
[1642919479487,0.1803,2465.6,2465.1,3.50075428]
[1642919479488,0.00170527,2465.5,2465.1,3.50075428]
[1642919479885,0.00113684,2465.4,2465.1,3.50075428]
[1642919480087,0.00113684,2465.4,2465.1,3.49654933]
[1642919480291,0.1803,2465.6,2465.1,1.12554696]
[1642919480292,0.00170527,2465.5,2465.1,1.12554696]
[1642919480488,0.00170527,2465.5,2465.4,1.3879652]
[1642919480688,0.1803,2465.6,2465.4,1.3879652]
[1642919480890,0.1803,2465.6,2465.5,2.34211793]
[1642919481289,0.18257369,2465.6,2465.5,2.34211793]
[1642919481490,3.9223,2466.5,2465.6,2.3]
[1642919481688,3.9223,2466.5,2465.7,2.72614613]
[1642919481889,0.00454739,2466.4,2466.0,1.27719588]
[1642919482092,0.00454739,2466.4,2466.0,3.6654633]
[1642919482289,0.00397896,2466.3,2466.0,3.63673623]
[1642919482745,0.00341054,2466.2,2466.0,3.93673623]
[1642919482950,0.00341054,2466.2,2466.1,2.86774009]
[1642919483150,7.89014417,2467.6,2466.1,4.89154009]
[1642919483447,1.09567154,2467.3,2466.1,3.89154009]
[1642919483651,0.01266324,2467.0,2466.1,1.0238]
[1642919483849,0.01266324,2467.0,2466.0,0.2619]
[1642919484050,0.00738951,2466.9,2466.0,0.2619]
[1642919484252,1.02241951,2466.9,2466.0,0.2619]
[1642919484454,1.12556479,2466.3,2466.0,0.2619]
[1642919484852,0.00341054,2466.2,2466.0,0.2619]
[1642919485256,0.00284212,2466.1,2465.2,0.05152498]
[1642919485655,0.494,2466.2,2465.3,0.00170527]
[1642919485656,0.00227369,2466.0,2465.3,0.00170527]
[1642919486055,0.00170527,2465.9,2465.3,0.00170527]
[1642919486254,1.24302461,2465.5,2465.3,0.00170527]
[1642919487103,1.84302461,2465.5,2465.3,0.00170527]
[1642919488907,3.1,2465.3,2463.6,5.17504089]
[1642919489108,0.01274141,2464.3,2463.9,0.00206775]
[1642919489307,0.00662888,2464.2,2463.9,0.00206775]
[1642919489507,1.219,2464.1,2463.9,0.00206775]
[1642919489705,1.219,2464.1,2463.7,0.00909478]
[1642919489908,1.219,2464.0,2463.8,1.38233605]
[1642919490240,1.219,2464.0,2463.9,0.00795793]
[1642919491043,1.219,2464.0,2463.9,1.19453546]
[1642919492041,1.219,2464.0,2463.9,0.00795793]
[1642919493044,1.219,2464.0,2463.9,1.36760306]
[1642919495196,1.219,2464.0,2463.9,0.00795793]
[1642919495599,1.219,2464.0,2463.2,0.01193689]
[1642919495907,1.219,2464.0,2462.9,0.50637188]
[1642919496098,1.219,2464.0,2463.0,30.44741848]
[1642919496302,1.219,2464.0,2463.9,2.10604811]
[1642919496501,1.219,2464.0,2463.9,3.50958941]
[1642919496704,1.219,2464.0,2463.9,1.46754734]
[1642919498449,1.219,2464.0,2463.9,3.89133055]
[1642919499448,0.10307318,2464.1,2463.9,5.83654399]
[1642919499749,3.9645,2465.2,2463.9,5.83654399]
[1642919499750,3.9645,2465.2,2464.8,1.31978069]
[1642919499948,1.0,2465.1,2464.8,1.31978069]
[1642919500146,0.6,2465.2,2464.8,1.31978069]
[1642919500147,0.3,2465.2,2464.9,0.00227369]
[1642919500547,0.3,2465.4,2464.9,0.00227369]
[1642919500746,1.80316,2465.5,2464.9,1.21773553]
[1642919500951,1.80316,2465.5,2464.9,0.00227369]
[1642919501148,1.80316,2465.5,2465.0,0.00170527]
[1642919501353,1.80316,2465.5,2464.9,0.00227369]
[1642919502003,1.52516066,2465.2,2464.9,0.00227369]
[1642919502203,4.0206,2465.6,2464.9,0.00227369]
[1642919502406,4.0206,2465.6,2464.6,0.00397896]
[1642919502603,0.00113685,2465.5,2464.6,0.00397896]
[1642919503004,0.00113685,2465.5,2464.8,1.09906026]
[1642919503202,1.35632535,2465.3,2464.8,1.09906026]
[1642919503402,1.35632535,2465.3,2464.9,0.00227369]
[1642919503807,1.60113685,2465.5,2464.9,0.00227369]
[1642919504406,1.60113685,2465.5,2464.6,0.00397896]
[1642919504606,1.60113685,2465.5,2464.1,0.00682108]
[1642919505007,2.61674685,2465.5,2464.1,0.00682108]
[1642919505441,1.46416864,2464.9,2464.3,1.46374171]
[1642919505636,3.77298494,2465.5,2464.3,1.46374171]
[1642919505836,3.77298494,2465.5,2464.4,2.40658074]
[1642919505837,1.00113685,2465.5,2464.4,2.40658074]
[1642919506041,1.30113685,2465.5,2464.4,2.40658074]
[1642919506247,0.06456881,2465.3,2465.1,0.0697099]
[1642919506747,0.06456881,2465.3,2465.1,2.70753405]
[1642919506942,0.06456881,2465.3,2465.2,2.62161828]
[1642919507141,0.06456881,2465.3,2465.1,3.30753405]
[1642919507142,0.06456881,2465.3,2465.1,2.70753405]
[1642919507942,0.06456881,2465.3,2465.2,2.45771358]
[1642919508143,0.06456881,2465.3,2465.2,2.41787879]
[1642919508342,0.06456881,2465.3,2465.1,2.70753405]
[1642919508542,0.00113685,2465.5,2465.2,2.51420993]
[1642919508750,0.00113685,2465.5,2465.2,26.25420993]
[1642919509000,0.00113685,2465.5,2465.3,1.6]
[1642919509198,0.00113685,2465.5,2465.4,4.56235791]
[1642919509401,4.04353685,2466.6,2465.5,2.05]
[1642919509599,4.04353685,2466.6,2465.2,0.494]
[1642919509600,1.48226605,2466.3,2465.8,1.28221319]
[1642919509797,1.48226605,2466.3,2465.3,2.85679084]
[1642919510999,1.48226605,2466.3,2465.1,3.15336704]
[1642919511198,1.48226605,2466.3,2465.4,0.06600523]
[1642919512000,1.48226605,2466.3,2465.5,1.34172203]
[1642919512403,1.52583176,2465.7,2465.5,1.34172203]
[1642919513444,1.00454738,2466.3,2465.5,1.34172203]
[1642919513948,0.00397896,2466.2,2465.5,1.34172203]
[1642919514346,0.00341054,2466.1,2465.5,1.34172203]
[1642919514551,1.3785015,2466.0,2465.5,1.34172203]
[1642919514752,1.38134361,2466.0,2465.4,0.06600523]
[1642919514951,0.00227369,2465.9,2465.4,0.06600523]
[1642919515351,0.00170527,2465.8,2465.4,0.06600523]
[1642919515852,0.00113684,2465.7,2465.4,0.06600523]
[1642919516156,0.00113684,2465.7,2465.2,0.36113325]
[1642919516592,0.00113684,2465.7,2465.3,0.00113685]
[1642919518395,1.45671919,2465.5,2465.3,0.00113685]
[1642919518696,0.00113684,2465.7,2465.3,0.00113685]
[1642919520236,1.32543195,2465.6,2465.3,0.00113685]
[1642919520641,5.34083195,2465.6,2465.3,0.00113685]
[1642919521040,9.10953195,2465.6,2465.3,0.00113685]
[1642919521245,9.10953195,2465.6,2465.4,0.0498478]
[1642919521746,5.34083195,2465.6,2465.4,0.0498478]
[1642919522644,4.79716,2465.5,2465.4,0.0498478]
[1642919523042,5.09716,2465.5,2465.4,0.0498478]
[1642919523442,0.494,2465.5,2465.4,0.0498478]
[1642919523744,4.0154,2465.6,2465.4,0.0498478]
[1642919524597,1.36725264,2465.5,2465.4,0.0498478]
[1642919524798,2.57041264,2465.5,2465.4,0.0498478]
[1642919525003,4.3154,2465.6,2465.3,0.00113685]
[1642919525004,4.0154,2465.6,2465.3,0.00113685]
[1642919525397,4.0154,2465.6,2464.3,2.59078076]
[1642919525699,4.0154,2465.6,2464.4,0.00625266]
[1642919525700,0.01294312,2465.0,2464.4,0.00625266]
[1642919526104,1.38139814,2464.5,2464.0,0.00852636]
[1642919526700,0.494,2464.9,2464.0,0.00852636]
[1642919526907,0.494,2465.1,2464.0,0.00852636]
[1642919527102,6.0326,2465.2,2463.5,0.01136847]
[1642919527302,6.0326,2465.2,2463.6,3.45125693]
[1642919527500,6.0326,2465.2,2463.7,3.18395968]
[1642919527739,6.0326,2465.2,2463.8,3.45125693]
[1642919527940,3.7893,2465.2,2464.8,1.41024873]
[1642919528141,4.30728822,2465.5,2464.8,3.85722804]
[1642919528142,3.8831,2465.5,2464.8,3.85722804]
[1642919528340,4.0154,2465.6,2464.9,0.00341054]
[1642919528641,0.494,2465.8,2464.9,2.49758857]
[1642919528843,1.4393968,2465.5,2464.9,2.49758857]
[1642919529044,1.4393968,2465.5,2465.0,0.00284212]
[1642919529744,1.4393968,2465.5,2464.9,0.00341054]
[1642919530945,1.4393968,2465.5,2465.2,1.46690249]
[1642919531145,1.4393968,2465.5,2465.1,0.06260414]
[1642919531348,1.4393968,2465.5,2465.3,0.00113685]
[1642919531598,0.58045932,2465.7,2465.2,0.00170527]
[1642919531798,0.07361523,2465.7,2465.2,0.00170527]
[1642919532202,0.07361523,2465.7,2465.2,2.86201803]
[1642919532598,0.07361523,2465.7,2465.3,0.00113685]
[1642919532800,5.91429997,2466.8,2465.7,2.4]